[Event "Titled Tuesday Blitz May 16 Late 2023"]
[White "Womacka, Mathias"]
[Black "Melikyan, Gnel"]
[WhiteFideId "4611390"]
[BlackFideId "54109990"]
[WhiteElo "2377"]
[BlackElo "2138"]
[Result "0-1"]
[Round "10"]
[TimeControl "180+2"]
[Date "2023.05.16"]
[WhiteClock "0:01:04"]
[BlackClock "0:01:52"]

1. e4 {[%clk 0:03:00]}  g5 {[%clk 0:02:47]} 2. d4 {[%clk 0:02:58]}  h6 {[%clk 0:02:42]} 3. h4 {[%clk 0:02:55]}  gxh4 {[%clk 0:02:40]} 4. Nf3 {[%clk 0:02:50]}  d6 {[%clk 0:02:38]} 5. Nxh4 {[%clk 0:02:48]}  Nc6 {[%clk 0:02:37]} 6. c3 {[%clk 0:02:47]}  Bg7 {[%clk 0:02:36]} 7. Bc4 {[%clk 0:02:36]}  Nf6 {[%clk 0:02:35]} 8. Nd2 {[%clk 0:02:22]}  e5 {[%clk 0:02:25]} 9. dxe5 {[%clk 0:02:11]}  Nxe5 {[%clk 0:02:24]} 10. Be2 {[%clk 0:02:07]}  Bd7 {[%clk 0:02:20]} 11. Nf5 {[%clk 0:01:39]}  Bxf5 {[%clk 0:02:15]} 12. exf5 {[%clk 0:01:40]}  Qd7 {[%clk 0:02:13]} 13. g4 {[%clk 0:01:39]}  O-O-O {[%clk 0:02:12]} 14. Nc4 {[%clk 0:01:30]}  Nxc4 {[%clk 0:01:58]} 15. Bxc4 {[%clk 0:01:31]}  Qc6 {[%clk 0:01:58]} 16. Rh3 {[%clk 0:01:11]}  Qxc4 {[%clk 0:01:55]} 17. Be3 {[%clk 0:01:04]}  Qxg4 {[%clk 0:01:52]} 0-1


[Site "https://www.chess.com"]

[Event "Titled Tuesday Blitz May 16 Late 2023"]
[White "liwadas82"]
[Black "Moore, Nicholas"]
[BlackFideId "4303709"]
[WhiteElo "2457"]
[BlackElo "2574"]
[Result "0-1"]
[Round "10"]
[TimeControl "180+2"]
[Date "2023.05.16"]
[WhiteClock "0:00:19"]
[BlackClock "0:00:27"]

1. e4 {[%clk 0:03:00]}  c5 {[%clk 0:02:59]} 2. Nf3 {[%clk 0:03:01]}  e6 {[%clk 0:02:59]} 3. d4 {[%clk 0:03:01]}  cxd4 {[%clk 0:02:58]} 4. Nxd4 {[%clk 0:03:02]}  Nc6 {[%clk 0:02:58]} 5. Nc3 {[%clk 0:03:02]}  Qc7 {[%clk 0:02:58]} 6. Be2 {[%clk 0:03:01]}  a6 {[%clk 0:02:58]} 7. Be3 {[%clk 0:03:01]}  Nf6 {[%clk 0:02:58]} 8. a3 {[%clk 0:03:01]}  b5 {[%clk 0:02:51]} 9. Nxc6 {[%clk 0:03:00]}  dxc6 {[%clk 0:02:43]} 10. f4 {[%clk 0:02:56]}  e5 {[%clk 0:02:32]} 11. O-O {[%clk 0:02:53]}  Bd6 {[%clk 0:02:30]} 12. f5 {[%clk 0:02:41]}  Qe7 {[%clk 0:02:16]} 13. b4 {[%clk 0:02:32]}  a5 {[%clk 0:02:07]} 14. bxa5 {[%clk 0:02:21]}  Rxa5 {[%clk 0:02:05]} 15. Qd2 {[%clk 0:02:11]}  Rxa3 {[%clk 0:01:58]} 16. Rxa3 {[%clk 0:02:08]}  Bxa3 {[%clk 0:01:59]} 17. Bf3 {[%clk 0:01:42]}  Bc5 {[%clk 0:01:57]} 18. Rd1 {[%clk 0:01:36]}  O-O {[%clk 0:01:52]} 19. Kh1 {[%clk 0:01:36]}  Bxe3 {[%clk 0:01:47]} 20. Qxe3 {[%clk 0:01:37]}  Nd7 {[%clk 0:01:01]} 21. g4 {[%clk 0:01:31]}  Qc5 {[%clk 0:00:55]} 22. Qxc5 {[%clk 0:01:24]}  Nxc5 {[%clk 0:00:55]} 23. Rd6 {[%clk 0:01:21]}  Bb7 {[%clk 0:00:51]} 24. Kg2 {[%clk 0:01:14]}  f6 {[%clk 0:00:46]} 25. h4 {[%clk 0:01:13]}  h6 {[%clk 0:00:46]} 26. Nd1 {[%clk 0:01:06]}  Kf7 {[%clk 0:00:44]} 27. Ne3 {[%clk 0:01:05]}  Ke7 {[%clk 0:00:43]} 28. Rd1 {[%clk 0:01:04]}  Rd8 {[%clk 0:00:42]} 29. Rxd8 {[%clk 0:01:04]}  Kxd8 {[%clk 0:00:41]} 30. g5 {[%clk 0:01:04]}  hxg5 {[%clk 0:00:38]} 31. hxg5 {[%clk 0:01:05]}  Ke7 {[%clk 0:00:38]} 32. gxf6+ {[%clk 0:01:04]}  gxf6 {[%clk 0:00:38]} 33. Kf2 {[%clk 0:01:00]}  Na4 {[%clk 0:00:34]} 34. Ke2 {[%clk 0:00:59]}  c5 {[%clk 0:00:34]} 35. Kd2 {[%clk 0:00:54]}  Nb6 {[%clk 0:00:31]} 36. c3 {[%clk 0:00:40]}  Nc8 {[%clk 0:00:31]} 37. c4 {[%clk 0:00:34]}  b4 {[%clk 0:00:31]} 38. Nd5+ {[%clk 0:00:32]}  Bxd5 {[%clk 0:00:30]} 39. exd5 {[%clk 0:00:26]}  Nd6 {[%clk 0:00:28]} 40. Be2 {[%clk 0:00:23]}  Nxf5 {[%clk 0:00:28]} 41. Kc2 {[%clk 0:00:23]}  Nd4+ {[%clk 0:00:28]} 42. Kd2 {[%clk 0:00:23]}  Nxe2 {[%clk 0:00:29]} 43. Kxe2 {[%clk 0:00:23]}  Kd6 {[%clk 0:00:29]} 44. Kd3 {[%clk 0:00:23]}  f5 {[%clk 0:00:30]} 45. Ke3 {[%clk 0:00:23]}  e4 {[%clk 0:00:29]} 46. Kd2 {[%clk 0:00:22]}  Ke5 {[%clk 0:00:29]} 47. Ke3 {[%clk 0:00:22]}  f4+ {[%clk 0:00:29]} 48. Kd2 {[%clk 0:00:23]}  f3 {[%clk 0:00:27]} 49. Ke3 {[%clk 0:00:23]}  Kd6 {[%clk 0:00:27]} 50. Kd2 {[%clk 0:00:19]}  b3 {[%clk 0:00:27]} 0-1


[Site "https://www.chess.com"]

[Event "Titled Tuesday Blitz May 16 Late 2023"]
[White "Abduzhaparov"]
[Black "AyMitecK"]
[WhiteElo "2421"]
[BlackElo "2561"]
[Result "0-1"]
[Round "10"]
[TimeControl "180+2"]
[Date "2023.05.16"]
[WhiteClock "0:00:00"]
[BlackClock "0:02:31"]

1. Nf3 {[%clk 0:03:00]}  e6 {[%clk 0:03:00]} 2. c4 {[%clk 0:03:01]}  Nf6 {[%clk 0:03:00]} 3. g3 {[%clk 0:03:01]}  d5 {[%clk 0:03:01]} 4. Bg2 {[%clk 0:03:01]}  Be7 {[%clk 0:03:01]} 5. d4 {[%clk 0:03:02]}  O-O {[%clk 0:03:02]} 6. Qc2 {[%clk 0:03:02]}  dxc4 {[%clk 0:03:02]} 7. Nbd2 {[%clk 0:03:02]}  c5 {[%clk 0:03:02]} 8. dxc5 {[%clk 0:03:01]}  Nc6 {[%clk 0:03:02]} 9. Qxc4 {[%clk 0:02:59]}  Qa5 {[%clk 0:03:00]} 10. O-O {[%clk 0:02:55]}  Qxc5 {[%clk 0:03:00]} 11. Qxc5 {[%clk 0:02:54]}  Bxc5 {[%clk 0:03:00]} 12. a3 {[%clk 0:02:53]}  a5 {[%clk 0:03:00]} 13. Nb3 {[%clk 0:02:49]}  Bb6 {[%clk 0:02:59]} 14. Bf4 {[%clk 0:02:48]}  Nd5 {[%clk 0:02:59]} 15. Ne5 {[%clk 0:02:41]}  Nxf4 {[%clk 0:02:55]} 16. gxf4 {[%clk 0:02:42]}  a4 {[%clk 0:02:52]} 17. Nc1 {[%clk 0:02:39]}  Nxe5 {[%clk 0:02:52]} 18. fxe5 {[%clk 0:02:40]}  Bd4 {[%clk 0:02:50]} 19. Nd3 {[%clk 0:02:40]}  Bd7 {[%clk 0:02:50]} 20. Rac1 {[%clk 0:02:36]}  Bb5 {[%clk 0:02:42]} 21. Bxb7 {[%clk 0:02:19]}  Rab8 {[%clk 0:02:39]} 22. Bc6 {[%clk 0:02:16]}  Bxd3 {[%clk 0:02:38]} 23. exd3 {[%clk 0:02:17]}  Bxb2 {[%clk 0:02:37]} 24. Rc2 {[%clk 0:02:17]}  Bxe5 {[%clk 0:02:36]} 25. Bxa4 {[%clk 0:02:10]}  Ra8 {[%clk 0:02:36]} 26. Rc4 {[%clk 0:02:09]}  Rfd8 {[%clk 0:02:35]} 27. Rfc1 {[%clk 0:01:38]}  Bb2 {[%clk 0:02:31]} 28. R1c2 {[%clk 0:01:21]}  Bxa3 {[%clk 0:02:31]} 29. Bc6 {[%clk 0:01:20]}  Rab8 {[%clk 0:02:29]} 30. Bf3 {[%clk 0:01:13]}  Rxd3 {[%clk 0:02:25]} 31. Rc8+ {[%clk 0:01:13]}  Rd8 {[%clk 0:02:25]} 32. Rxd8+ {[%clk 0:01:03]}  Rxd8 {[%clk 0:02:25]} 33. Ra2 {[%clk 0:01:03]}  Be7 {[%clk 0:02:25]} 34. Ra8 {[%clk 0:01:02]}  Bf6 {[%clk 0:02:26]} 35. Rxd8+ {[%clk 0:01:02]}  Bxd8 {[%clk 0:02:26]} 36. Be4 {[%clk 0:01:02]}  g6 {[%clk 0:02:26]} 37. Kg2 {[%clk 0:01:00]}  Kg7 {[%clk 0:02:27]} 38. Bc2 {[%clk 0:00:59]}  h5 {[%clk 0:02:28]} 39. h3 {[%clk 0:00:55]}  Kf6 {[%clk 0:02:29]} 40. Kf3 {[%clk 0:00:53]}  Bb6 {[%clk 0:02:30]} 41. Ba4 {[%clk 0:00:52]}  Kg5 {[%clk 0:02:28]} 42. Be8 {[%clk 0:00:48]}  f6 {[%clk 0:02:29]} 43. Bf7 {[%clk 0:00:44]}  Kf5 {[%clk 0:02:29]} 44. Be8 {[%clk 0:00:42]}  h4 {[%clk 0:02:28]} 45. Bd7 {[%clk 0:00:38]}  Bc5 {[%clk 0:02:29]} 46. Bc8 {[%clk 0:00:37]}  Bd6 {[%clk 0:02:30]} 47. Bd7 {[%clk 0:00:37]}  g5 {[%clk 0:02:30]} 48. Bc8 {[%clk 0:00:35]}  Bc5 {[%clk 0:02:31]} 49. Bd7 {[%clk 0:00:35]}  Ke5 {[%clk 0:02:31]} 50. Bc8 {[%clk 0:00:35]}  f5 {[%clk 0:02:32]} 51. Bd7 {[%clk 0:00:32]}  Kf6 {[%clk 0:02:32]} 52. Bc8 {[%clk 0:00:32]}  Bb6 {[%clk 0:02:33]} 53. Bd7 {[%clk 0:00:31]}  e5 {[%clk 0:02:33]} 54. Bc8 {[%clk 0:00:26]}  e4+ {[%clk 0:02:34]} 55. Ke2 {[%clk 0:00:26]}  Ke5 {[%clk 0:02:35]} 56. Bd7 {[%clk 0:00:20]}  Kf4 {[%clk 0:02:35]} 57. Bc8 {[%clk 0:00:17]}  g4 {[%clk 0:02:35]} 58. hxg4 {[%clk 0:00:18]}  fxg4 {[%clk 0:02:36]} 59. Kf1 {[%clk 0:00:18]}  Kf3 {[%clk 0:02:35]} 60. Ba6 {[%clk 0:00:14]}  Bxf2 {[%clk 0:02:34]} 61. Be2+ {[%clk 0:00:12]}  Kg3 {[%clk 0:02:34]} 62. Bb5 {[%clk 0:00:09]}  Bc5 {[%clk 0:02:32]} 63. Bc6 {[%clk 0:00:09]}  Kf3 {[%clk 0:02:32]} 64. Bb7 {[%clk 0:00:09]}  h3 {[%clk 0:02:32]} 65. Ba6 {[%clk 0:00:01]}  g3 {[%clk 0:02:31]} 66. Be2+ {[%clk 0:00:00]}  Ke3 {[%clk 0:02:31]} 0-1


[Site "https://www.chess.com"]

[Event "Titled Tuesday Blitz May 16 Late 2023"]
[White "Guerra Tulcan, Lenin"]
[Black "Wieczorek, Zbigniew"]
[WhiteFideId "3601382"]
[BlackFideId "1102001"]
[WhiteElo "2368"]
[BlackElo "2326"]
[Result "1-0"]
[Round "10"]
[TimeControl "180+2"]
[Date "2023.05.16"]
[WhiteClock "0:01:22"]
[BlackClock "0:00:00"]

1. e4 {[%clk 0:03:00]}  g6 {[%clk 0:03:00]} 2. d4 {[%clk 0:02:59]}  Bg7 {[%clk 0:03:00]} 3. Nf3 {[%clk 0:03:00]}  c6 {[%clk 0:02:59]} 4. Nc3 {[%clk 0:03:00]}  d5 {[%clk 0:03:00]} 5. Be2 {[%clk 0:03:00]}  Bg4 {[%clk 0:02:59]} 6. e5 {[%clk 0:03:00]}  e6 {[%clk 0:02:59]} 7. O-O {[%clk 0:03:00]}  Nd7 {[%clk 0:03:00]} 8. h3 {[%clk 0:03:00]}  Bxf3 {[%clk 0:02:59]} 9. Bxf3 {[%clk 0:03:01]}  Ne7 {[%clk 0:02:59]} 10. b3 {[%clk 0:02:58]}  c5 {[%clk 0:02:46]} 11. Nb5 {[%clk 0:02:56]}  cxd4 {[%clk 0:02:45]} 12. Nd6+ {[%clk 0:02:56]}  Kf8 {[%clk 0:02:46]} 13. Nxb7 {[%clk 0:02:53]}  Qb6 {[%clk 0:02:33]} 14. Nd6 {[%clk 0:02:53]}  Nxe5 {[%clk 0:02:33]} 15. Nc4 {[%clk 0:02:53]}  Nxf3+ {[%clk 0:02:08]} 16. Qxf3 {[%clk 0:02:53]}  Qc7 {[%clk 0:02:03]} 17. Ba3 {[%clk 0:02:41]}  Rd8 {[%clk 0:01:56]} 18. Nb2 {[%clk 0:02:31]}  Kg8 {[%clk 0:01:12]} 19. Nd3 {[%clk 0:02:23]}  Nc6 {[%clk 0:01:11]} 20. Rad1 {[%clk 0:02:01]}  e5 {[%clk 0:01:10]} 21. Qg3 {[%clk 0:02:01]}  f5 {[%clk 0:01:03]} 22. Bb2 {[%clk 0:01:53]}  f4 {[%clk 0:00:47]} 23. Qg5 {[%clk 0:01:52]}  Kf7 {[%clk 0:00:40]} 24. Rfe1 {[%clk 0:01:49]}  h6 {[%clk 0:00:20]} 25. Qg4 {[%clk 0:01:48]}  Rhe8 {[%clk 0:00:18]} 26. h4 {[%clk 0:01:40]}  Bf6 {[%clk 0:00:14]} 27. h5 {[%clk 0:01:39]}  g5 {[%clk 0:00:13]} 28. Qf5 {[%clk 0:01:39]}  Qd7 {[%clk 0:00:05]} 29. Qg6+ {[%clk 0:01:37]}  Kf8 {[%clk 0:00:06]} 30. Qxh6+ {[%clk 0:01:34]}  Bg7 {[%clk 0:00:05]} 31. Qxg5 {[%clk 0:01:30]}  Qe7 {[%clk 0:00:06]} 32. Qg6 {[%clk 0:01:25]}  Qf6 {[%clk 0:00:05]} 33. Qh7 {[%clk 0:01:22]}  Qh6 {[%clk 0:00:00]} 34. Ba3+ {[%clk 0:01:22]} 1-0


[Site "https://www.chess.com"]

[Event "Titled Tuesday Blitz May 16 Late 2023"]
[White "Safin, Robert"]
[Black "Rodriguez Polo, Mateo"]
[WhiteFideId "34189120"]
[BlackFideId "24509396"]
[WhiteElo "2295"]
[BlackElo "2117"]
[Result "1-0"]
[Round "10"]
[TimeControl "180+2"]
[Date "2023.05.16"]
[WhiteClock "0:01:09"]
[BlackClock "0:01:36"]

1. e4 {[%clk 0:03:00]}  e5 {[%clk 0:02:59]} 2. Nf3 {[%clk 0:03:00]}  Nc6 {[%clk 0:03:00]} 3. Bb5 {[%clk 0:03:00]}  a6 {[%clk 0:03:00]} 4. Bxc6 {[%clk 0:02:59]}  dxc6 {[%clk 0:03:01]} 5. d4 {[%clk 0:02:58]}  exd4 {[%clk 0:03:01]} 6. Qxd4 {[%clk 0:02:59]}  Qxd4 {[%clk 0:03:01]} 7. Nxd4 {[%clk 0:02:59]}  Bd6 {[%clk 0:03:02]} 8. f3 {[%clk 0:02:53]}  Ne7 {[%clk 0:03:02]} 9. Nc3 {[%clk 0:02:52]}  O-O {[%clk 0:03:02]} 10. g4 {[%clk 0:02:46]}  Bd7 {[%clk 0:02:52]} 11. h4 {[%clk 0:02:43]}  c5 {[%clk 0:02:42]} 12. Nf5 {[%clk 0:02:40]}  g6 {[%clk 0:02:33]} 13. Nxd6 {[%clk 0:02:35]}  cxd6 {[%clk 0:02:34]} 14. Bh6 {[%clk 0:02:28]}  Rfe8 {[%clk 0:02:34]} 15. O-O-O {[%clk 0:02:24]}  Bc6 {[%clk 0:02:01]} 16. Rxd6 {[%clk 0:02:21]}  f5 {[%clk 0:02:00]} 17. gxf5 {[%clk 0:02:18]}  gxf5 {[%clk 0:01:59]} 18. Rg1+ {[%clk 0:02:18]}  Kh8 {[%clk 0:01:56]} 19. Bg7+ {[%clk 0:02:16]}  Kg8 {[%clk 0:01:56]} 20. Bf6+ {[%clk 0:01:59]}  Kf7 {[%clk 0:01:56]} 21. Rg7+ {[%clk 0:01:58]}  Kf8 {[%clk 0:01:57]} 22. Rxh7 {[%clk 0:01:58]}  fxe4 {[%clk 0:01:57]} 23. Nxe4 {[%clk 0:01:28]}  Bxe4 {[%clk 0:01:56]} 24. fxe4 {[%clk 0:01:24]}  Rac8 {[%clk 0:01:51]} 25. Bxe7+ {[%clk 0:01:22]}  Kg8 {[%clk 0:01:50]} 26. Rdh6 {[%clk 0:01:18]}  Rc7 {[%clk 0:01:45]} 27. Rh8+ {[%clk 0:01:15]}  Kf7 {[%clk 0:01:46]} 28. R6h7+ {[%clk 0:01:14]}  Kg6 {[%clk 0:01:43]} 29. Rxe8 {[%clk 0:01:15]}  Kxh7 {[%clk 0:01:43]} 30. e5 {[%clk 0:01:14]}  Kg6 {[%clk 0:01:39]} 31. Bd6 {[%clk 0:01:13]}  Rh7 {[%clk 0:01:36]} 32. e6 {[%clk 0:01:09]} 1-0


[Site "https://www.chess.com"]

[Event "Titled Tuesday Blitz May 16 Late 2023"]
[White "Djordjevic, Dejan N"]
[Black "WindWhistler11"]
[WhiteFideId "913316"]
[WhiteElo "2261"]
[BlackElo "2524"]
[Result "0-1"]
[Round "10"]
[TimeControl "180+2"]
[Date "2023.05.16"]
[WhiteClock "0:00:00"]
[BlackClock "0:00:06"]

1. e4 {[%clk 0:03:00]}  e6 {[%clk 0:02:53]} 2. d3 {[%clk 0:03:00]}  d5 {[%clk 0:02:54]} 3. Nd2 {[%clk 0:03:01]}  Nf6 {[%clk 0:02:54]} 4. Ngf3 {[%clk 0:03:01]}  c5 {[%clk 0:02:51]} 5. c3 {[%clk 0:03:01]}  Nc6 {[%clk 0:02:51]} 6. g3 {[%clk 0:03:01]}  g6 {[%clk 0:02:51]} 7. Bg2 {[%clk 0:03:01]}  Bg7 {[%clk 0:02:52]} 8. O-O {[%clk 0:03:02]}  O-O {[%clk 0:02:53]} 9. Qe2 {[%clk 0:03:01]}  b6 {[%clk 0:02:53]} 10. Re1 {[%clk 0:03:01]}  a5 {[%clk 0:02:53]} 11. Nf1 {[%clk 0:02:55]}  Ba6 {[%clk 0:02:53]} 12. e5 {[%clk 0:02:53]}  Nd7 {[%clk 0:02:45]} 13. Bf4 {[%clk 0:02:53]}  b5 {[%clk 0:02:29]} 14. h4 {[%clk 0:02:52]}  b4 {[%clk 0:02:29]} 15. N1h2 {[%clk 0:02:49]}  a4 {[%clk 0:02:23]} 16. a3 {[%clk 0:02:41]}  bxc3 {[%clk 0:02:22]} 17. bxc3 {[%clk 0:02:40]}  Qa5 {[%clk 0:02:23]} 18. Qd2 {[%clk 0:02:38]}  Qb5 {[%clk 0:02:18]} 19. Bf1 {[%clk 0:02:29]}  Rfb8 {[%clk 0:02:15]} 20. Ra2 {[%clk 0:02:26]}  Qa5 {[%clk 0:01:58]} 21. Ng4 {[%clk 0:02:05]}  Rb3 {[%clk 0:01:51]} 22. Rc1 {[%clk 0:02:02]}  d4 {[%clk 0:01:45]} 23. cxd4 {[%clk 0:01:56]}  Qxd2 {[%clk 0:01:40]} 24. Nxd2 {[%clk 0:01:54]}  Nxd4 {[%clk 0:01:37]} 25. Nxb3 {[%clk 0:01:53]}  axb3 {[%clk 0:01:38]} 26. Rb2 {[%clk 0:01:47]}  h5 {[%clk 0:01:35]} 27. Nf6+ {[%clk 0:01:38]}  Nxf6 {[%clk 0:01:32]} 28. exf6 {[%clk 0:01:38]}  Bxf6 {[%clk 0:01:32]} 29. Rbb1 {[%clk 0:01:38]}  Bb7 {[%clk 0:01:02]} 30. Kh2 {[%clk 0:01:13]}  Rxa3 {[%clk 0:00:47]} 31. Rxc5 {[%clk 0:01:11]}  Ra2 {[%clk 0:00:46]} 32. Be3 {[%clk 0:01:10]}  Nf3+ {[%clk 0:00:43]} 33. Kh3 {[%clk 0:01:09]}  Ng1+ {[%clk 0:00:42]} 34. Kh2 {[%clk 0:01:08]}  Nf3+ {[%clk 0:00:43]} 35. Kh3 {[%clk 0:01:08]}  b2 {[%clk 0:00:23]} 36. d4 {[%clk 0:01:00]}  Be4 {[%clk 0:00:18]} 37. Rxb2 {[%clk 0:00:45]}  Rxb2 {[%clk 0:00:19]} 38. Bg2 {[%clk 0:00:38]}  Ng1+ {[%clk 0:00:15]} 39. Kh2 {[%clk 0:00:38]}  Nf3+ {[%clk 0:00:13]} 40. Kh3 {[%clk 0:00:37]}  Ng1+ {[%clk 0:00:13]} 41. Kh2 {[%clk 0:00:37]}  Bxg2 {[%clk 0:00:14]} 42. Kxg2 {[%clk 0:00:37]}  Ne2 {[%clk 0:00:14]} 43. d5 {[%clk 0:00:37]}  exd5 {[%clk 0:00:14]} 44. Rxd5 {[%clk 0:00:37]}  Nc3 {[%clk 0:00:14]} 45. Rd6 {[%clk 0:00:31]}  Ne4 {[%clk 0:00:11]} 46. Rc6 {[%clk 0:00:24]}  Kg7 {[%clk 0:00:10]} 47. Kf3 {[%clk 0:00:24]}  Nc3 {[%clk 0:00:09]} 48. Kg2 {[%clk 0:00:18]}  Nd1 {[%clk 0:00:04]} 49. Ba7 {[%clk 0:00:15]}  Rd2 {[%clk 0:00:03]} 50. Kf3 {[%clk 0:00:13]}  Bd4 {[%clk 0:00:04]} 51. Bxd4+ {[%clk 0:00:07]}  Rxd4 {[%clk 0:00:05]} 52. Ke2 {[%clk 0:00:07]}  Rd7 {[%clk 0:00:05]} 53. Rc1 {[%clk 0:00:06]}  Nb2 {[%clk 0:00:05]} 54. Rc3 {[%clk 0:00:03]}  Na4 {[%clk 0:00:05]} 55. Rc4 {[%clk 0:00:03]}  Nb6 {[%clk 0:00:05]} 56. Rc5 {[%clk 0:00:03]}  Nd5 {[%clk 0:00:06]} 57. f3 {[%clk 0:00:03]}  Re7+ {[%clk 0:00:05]} 58. Kf2 {[%clk 0:00:03]}  Nb4 {[%clk 0:00:06]} 59. Kg2 {[%clk 0:00:02]}  Nd3 {[%clk 0:00:06]} 60. g4 {[%clk 0:00:00]}  Nxc5 {[%clk 0:00:06]} 0-1


[Site "https://www.chess.com"]

[Event "Titled Tuesday Blitz May 16 Late 2023"]
[White "Petrovic, Aleksa"]
[Black "Camilla_Lee"]
[WhiteFideId "967629"]
[WhiteElo "2309"]
[BlackElo "2605"]
[Result "0-1"]
[Round "10"]
[TimeControl "180+2"]
[Date "2023.05.16"]
[WhiteClock "0:00:37"]
[BlackClock "0:00:31"]

1. d4 {[%clk 0:03:00]}  Nf6 {[%clk 0:02:59]} 2. c4 {[%clk 0:03:01]}  g6 {[%clk 0:02:58]} 3. Nc3 {[%clk 0:03:00]}  d5 {[%clk 0:02:58]} 4. e3 {[%clk 0:02:58]}  Bg7 {[%clk 0:02:58]} 5. Qb3 {[%clk 0:02:58]}  c5 {[%clk 0:02:53]} 6. dxc5 {[%clk 0:02:55]}  e6 {[%clk 0:02:45]} 7. cxd5 {[%clk 0:02:54]}  exd5 {[%clk 0:02:40]} 8. Nf3 {[%clk 0:02:54]}  O-O {[%clk 0:02:40]} 9. Be2 {[%clk 0:02:52]}  Na6 {[%clk 0:02:16]} 10. O-O {[%clk 0:02:47]}  Nxc5 {[%clk 0:02:16]} 11. Qb4 {[%clk 0:02:37]}  b6 {[%clk 0:02:16]} 12. Rd1 {[%clk 0:02:35]}  a5 {[%clk 0:02:16]} 13. Qa3 {[%clk 0:02:20]}  Bb7 {[%clk 0:02:14]} 14. Bd2 {[%clk 0:02:14]}  Re8 {[%clk 0:02:12]} 15. Be1 {[%clk 0:02:12]}  Bf8 {[%clk 0:01:57]} 16. b3 {[%clk 0:02:04]}  Nd3 {[%clk 0:01:51]} 17. Qa4 {[%clk 0:02:01]}  Nb2 {[%clk 0:01:50]} 18. Qd4 {[%clk 0:01:56]}  Nxd1 {[%clk 0:01:50]} 19. Rxd1 {[%clk 0:01:57]}  Bg7 {[%clk 0:01:42]} 20. Qf4 {[%clk 0:01:50]}  Qb8 {[%clk 0:01:38]} 21. Qxb8 {[%clk 0:01:47]}  Raxb8 {[%clk 0:01:39]} 22. Nb5 {[%clk 0:01:45]}  Ne4 {[%clk 0:01:29]} 23. Nfd4 {[%clk 0:01:40]}  h5 {[%clk 0:01:21]} 24. f3 {[%clk 0:01:33]}  Nc5 {[%clk 0:01:21]} 25. Bg3 {[%clk 0:01:32]}  Be5 {[%clk 0:01:16]} 26. Bf2 {[%clk 0:01:21]}  Rbd8 {[%clk 0:01:08]} 27. Na7 {[%clk 0:01:17]}  Bg7 {[%clk 0:00:49]} 28. Bb5 {[%clk 0:01:13]}  Rf8 {[%clk 0:00:49]} 29. Nac6 {[%clk 0:00:58]}  Bxc6 {[%clk 0:00:43]} 30. Nxc6 {[%clk 0:00:57]}  Rd6 {[%clk 0:00:43]} 31. Rxd5 {[%clk 0:00:51]}  Rxd5 {[%clk 0:00:37]} 32. Ne7+ {[%clk 0:00:51]}  Kh7 {[%clk 0:00:38]} 33. Nxd5 {[%clk 0:00:52]}  f5 {[%clk 0:00:33]} 34. Nxb6 {[%clk 0:00:37]}  Rb8 {[%clk 0:00:31]} 0-1


[Site "https://www.chess.com"]